[Event "Czech Championship Women 2022"]
[Site "Jaromerice nad Rokytnou"]
[Date "2022.05.28"]
[Round "8.5"]
[White "Trasakova, Adela"]
[Black "Richterova, Natasa"]
[Result "0-1"]
[ECO "E18"]
[WhiteElo "1842"]
[BlackElo "2181"]
[Annotator "TA"]
[PlyCount "88"]
[EventDate "2022.05.24"]
[EventType "tourn"]
[EventCountry "CZE"]
[SourceTitle "playchess.com"]
[Source "ChessBase"]
[SourceQuality "1"]
[TimeControl "40/5400+30:1800+30"]

{[%evp 17,88,0,0,0,19,0,0,0,0,-6,20,-25,-13,-33,0,2,31,5,18,-10,0,0,0,-14,-8,-44,8,2,8,0,0,0,16,-53,-46,-50,-52,-76,-71,-67,-72,-80,-66,-64,-3,-62,-19,-87,-89,-95,-96,-275,-289,-662,-652,-654,-647,-621,-618,-682,-553,-545,-545,-718,-718,-683,-681,-589,-570,-835,-755,-945,-943]} 1. d4 {[%emt 0:00:02]} Nf6 {[%emt 0:00:26]} 2. Nf3 {[%emt 0:00:02]} e6 {[%emt 0:00:26]} 3. g3 {[%emt 0:00:02]} b6 {[%emt 0:00:08]} 4. Bg2 {[%emt 0:00:02]} Bb7 {[%emt 0:00:05]} 5. O-O {[%emt 0:00:05]} c5 {[%emt 0:00:04]} 6. dxc5 {[%emt 0:00:29]} bxc5 {[%emt 0:04:01]} 7. c4 {[%emt 0:00:18]} Be7 {[%emt 0:01:37]} 8. Nc3 {[%emt 0:00:22]} O-O {[%emt 0:03:58]} 9. Bf4 {[%emt 0:04:05]} d6 {[%emt 0:05:07]} 10. Qb3 {[%emt 0:02:29] E18: Queen's Indian: Old Main Line (4 g3 Bb7 5 Bg2 Be7 6 0-0 0-0 7 Nc3).} Qc8 {[%emt 0:00:59]} 11. Rfd1 {[%emt 0:05:59]} Rd8 {[%emt 0:04:44]} 12. Rd2 {[%emt 0:03:44] The position is equal.} Nc6 {[%emt 0:18:43]} 13. Rad1 {[%emt 0:11:04][%cal Rf4d6]} Ne8 {[%emt 0:12:01] [#]} 14. e4 $146 {[%emt 0:08:31]} ({Predecessor:} 14. Bg5 f6 15. Be3 Rb8 16. Qc2 Ba8 17. b3 a6 18. h4 f5 19. Ng5 Nb4 20. Qc1 Bxg2 21. Kxg2 {0-1 (50) Mueller,N (2160)-Noe,C (2231) Oberhof 2013}) 14... e5 {[%emt 0:01:03]} 15. Be3 {[%emt 0:01:30]} Rb8 {[%emt 0:08:41]} 16. Nd5 {[%emt 0:03:14][%cal Of3e5] aiming for Nxe5!} Qe6 {[%emt 0:04:08]} 17. Qc3 {[%emt 0:03:50]} Rdc8 {[%emt 0:04:27]} 18. b3 {[%emt 0:05:09]} Bd8 {[%emt 0:00:39]} 19. Qd3 {[%emt 0:07:40]} Nd4 {[%emt 0:02:29]} 20. Qf1 {[%emt 0:04:24][%cal Re3d4]} ({Of course not} 20. Nxd4 cxd4 21. Bxd4 exd4 22. Qxd4 Ba5 $17) 20... Bxd5 {[%emt 0:04:22]} 21. exd5 {[%emt 0:04:47]} Nxf3+ {[%emt 0:09:56]} (21... Qd7 $15) 22. Bxf3 $11 {[%emt 0:00:15]} Qg6 {[%emt 0:00:19]} 23. Bg2 {[%emt 0:06:05]} Ba5 {[%emt 0:01:05]} 24. Re2 {[%emt 0:00:53]} f5 {[%emt 0:01:48]} 25. Bd2 {[%emt 0:03:34]} (25. f3 $11) 25... Bxd2 $15 {[%emt 0:00:28]} 26. Rdxd2 {[%emt 0:00:24]} Nf6 {[%emt 0:00:21]} 27. f4 {[%emt 0:02:24]} e4 {[%emt 0:00:56]} 28. Qe1 {[%emt 0:01:21]} Rb4 {[%emt 0:01:37]} 29. Re3 {[%emt 0:03:59]} Ng4 {[%emt 0:00:49]} 30. Rc3 {[%emt 0:01:58]} Qf6 {[%emt 0:00:22]} (30... h5 $15) 31. Rcc2 {[%emt 0:00:56]} ({White should play} 31. Re2 $11) 31... Rcb8 {[%emt 0:02:30]} 32. Qe2 {[%emt 0:00:55]} (32. h3 $11 {remains equal.} Nh6 33. g4) 32... Qg6 $17 {[%emt 0:01:11] Black is more active.} 33. Rc3 {[%emt 0:00:59]} a5 $36 {[%emt 0:01:54][%mdl 2048] Black is on the roll.} 34. Rb2 $2 {[%emt 0:01:03] [#] White does not recover from this.} (34. h3 $17 {might work better.} Nf6 35. Rdc2) 34... Qf6 $19 {[%emt 0:00:07]} 35. h3 $2 {[%emt 0:10:21]} (35. Rc1) 35... Qxc3 {[%emt 0:00:16] Black is clearly winning.} 36. hxg4 {[%emt 0:00:02]} Qxg3 {[%emt 0:02:38]} 37. gxf5 {[%emt 0:01:20]} Qxf4 {[%emt 0:02:24]} 38. Rb1 {[%emt 0:01:11]} Qxf5 {[%emt 0:01:55]} 39. Rf1 {[%emt 0:00:01]} Qg6 {[%emt 0:00:08]} 40. Kh2 {[%emt 0:00:51]} Rf8 {[%emt 0:00:24]} 41. Rxf8+ {[%emt 0:06:19]} Kxf8 {[%emt 0:00:07]} 42. Bxe4 {[%emt 0:00:03]} Qh6+ {[%emt 0:00:29]} 43. Kg1 {[%emt 0:00:01]} Qg5+ {[%emt 0:01:26]} 44. Kh1 {[%emt 0:01:06]} Rb7 {[%emt 0:01:24] Weighted Error Value: White=0.54/Black=0.16 (very precise)} 0-1

[Event "Czech Championship Women 2022"]
[Site "Jaromerice nad Rokytnou"]
[Date "2022.05.29"]
[Round "9.1"]
[White "Richterova, Natasa"]
[Black "Pilsova, Karolina"]
[Result "1-0"]
[ECO "D05"]
[WhiteElo "2181"]
[BlackElo "2229"]
[Annotator "TA"]
[PlyCount "119"]
[EventDate "2022.05.24"]
[EventType "tourn"]
[EventCountry "CZE"]
[SourceTitle "playchess.com"]
[Source "ChessBase"]
[SourceQuality "1"]
[TimeControl "40/5400+30:1800+30"]

{[%evp 20,119,5,0,12,0,0,-5,0,0,0,-24,0,0,0,-6,0,-8,-4,-11,-11,-11,-12,-12,-4,-23,-21,-31,-30,-30,-24,-26,-22,-20,-19,-16,-14,-25,-6,-30,-22,-12,-19,-16,0,0,0,0,0,0,0,0,22,22,44,0,0,0,12,0,62,60,68,65,22,43,42,26,263,173,173,173,173,173,173,168,294,294,294,274,294,294,294,347,347,338,310,310,295,291,170,75,339,317,576,478,1225,798,29967,29969,29969,5951]} 1. d4 {[%emt 0:00:04]} Nf6 {[%emt 0:00:07]} 2. Nf3 {[%emt 0:00:04]} e6 {[%emt 0:00:23]} 3. e3 {[%emt 0:03:44]} b6 {[%emt 0:00:21]} 4. Bd3 {[%emt 0:00:56]} Bb7 {[%emt 0:00:14]} 5. Nbd2 {[%emt 0:00:29]} d5 {[%emt 0:09:35]} 6. Qe2 {[%emt 0:04:51]} Be7 {[%emt 0:12:12]} 7. O-O {[%emt 0:05:25]} O-O {[%emt 0:00:43]} 8. Ne5 {[%emt 0:02:09]} c5 {[%emt 0:01:08]} 9. b3 {[%emt 0:00:06]} Nc6 {[%emt 0:05:31]} 10. Nxc6 {[%emt 0:00:58]} Bxc6 {[%emt 0:00:05]} 11. Bb2 {[%emt 0:00:31]} Rc8 {[%emt 0:04:21] D05: Colle System with ...e6.} 12. Rad1 {[%emt 0:03:14]} cxd4 {[%emt 0:05:47] [#]} 13. exd4 $146 {[%emt 0:02:08]} ({Predecessor:} 13. Bxd4 Nd7 14. f4 Bf6 15. Qh5 g6 16. Qh6 Qe7 17. Rf3 Bxd4 18. exd4 Qf6 19. c3 {1-0 (44) Aronov,M (2254)-Heika,M (2335) Bayern 2012}) 13... Qc7 {[%emt 0:00:13] The position is equal.} 14. Rc1 {[%emt 0:03:51]} Bb7 {[%emt 0:01:09]} 15. Rfe1 {[%emt 0:06:09]} Bb4 {[%emt 0:02:40]} (15... Ne4 {looks sharper.} 16. c4 Nxd2 17. Qxd2 dxc4 18. bxc4 h6) 16. c3 {[%emt 0:01:05]} Bd6 {[%emt 0:00:05]} 17. g3 {[%emt 0:00:27]} Qe7 {[%emt 0:04:25]} 18. Ba1 {[%emt 0:03:00]} Rc7 {[%emt 0:00:49]} 19. f4 {[%emt 0:07:02]} Qd7 {[%emt 0:05:52]} 20. Qf1 {[%emt 0:03:19]} Qc8 {[%emt 0:04:13]} 21. Bb2 {[%emt 0:03:14]} Qa8 {[%emt 0:05:38]} 22. Qf3 {[%emt 0:05:16]} a5 {[%emt 0:04:17]} 23. a4 {[%emt 0:05:02]} Ba6 {[%emt 0:00:30]} 24. Bb1 {[%emt 0:16:15]} b5 {[%emt 0:01:02]} 25. axb5 {[%emt 0:00:04]} Bxb5 {[%emt 0:00:05]} 26. c4 {[%emt 0:00:07]} dxc4 {[%emt 0:03:34]} 27. Qxa8 {[%emt 0:00:41]} Rxa8 {[%emt 0:00:01]} 28. bxc4 {[%emt 0:00:14]} Bc6 {[%emt 0:01:59]} 29. Ne4 {[%emt 0:02:34]} Bxe4 {[%emt 0:04:32]} 30. Bxe4 {[%emt 0:00:54]} Rb8 {[%emt 0:00:08]} 31. Rc2 {[%emt 0:04:45]} Nxe4 {[%emt 0:07:20]} 32. Rxe4 {[%emt 0:00:00]} Rcb7 {[%emt 0:00:13]} 33. Ree2 {[%emt 0:01:28]} Be7 {[%emt 0:01:25]} 34. Kg2 {[%emt 0:01:37]} Bf6 {[%emt 0:00:50]} 35. c5 {[%emt 0:02:16][%cal Bc4c5,Bc5c6][%mdl 32]} a4 {[%emt 0:04:04]} 36. c6 {[%emt 0:04:33]} Rc7 {[%emt 0:07:49]} (36... Rb3 {keeps more tension.} 37. c7 Rc8 38. d5 exd5 39. Re8+ Rxe8 40. c8=Q Rb8) 37. Rc4 {[%emt 0:00:05]} (37. f5 $5) 37... Kf8 {[%emt 0:03:33]} 38. f5 {[%emt 0:01:20]} Rbc8 {[%emt 0:00:57]} 39. fxe6 {[%emt 0:00:59]} fxe6 {[%emt 0:00:40]} ({Black should play} 39... Rxc6 $11 40. Ba3+ (40. Rxa4 fxe6 41. Ba3+ Kf7 $11) 40... Ke8 41. exf7+ (41. Rxa4 fxe6 42. Bc5 Kf7 $11) 41... Kxf7 42. Rxa4 Rc2) 40. Rxe6 $14 {[%emt 0:00:08]} Kf7 {[%emt 0:00:31] [#]} 41. Rxf6+ {[%emt 0:15:28]} gxf6 {[%emt 0:00:49][%mdl 4096] Endgame KRR-KRB} 42. d5 {[%emt 0:00:15][%cal Bd4d5,Bd5d6,Bd6d7][%mdl 32]} Rd8 {[%emt 0:08:46]} 43. Rc5 {[%emt 0:00:22][%mdl 1024] White has compensation.} Rb8 $2 {[%emt 0:01:17]} (43... Re7 $11 44. Kf3 Ree8) 44. Ba3 {[%emt 0:00:53] Hoping for d6.} Rb3 {[%emt 0:01:04]} 45. Bc1 {[%emt 0:02:45] aiming for d6.} ({Not} 45. d6 Rxc6 $1 46. Rxc6 Rxa3 $11) 45... Rd3 {[%emt 0:06:56]} 46. Bf4 {[%emt 0:02:27]} Rc8 {[%emt 0:00:16]} 47. d6 {[%emt 0:00:52] Black must now prevent d7.} Ke6 {[%emt 0:00:16]} (47... a3 $142) 48. d7 $18 {[%emt 0:00:50]} Ra8 {[%emt 0:00:26]} 49. Rb5 {[%emt 0:11:58]} a3 {[%emt 0:01:51] Strongly threatening ...a2.} 50. c7 {[%emt 0:00:08]} Rxd7 {[%emt 0:03:19]} (50... Kxd7 $2 51. Rb8 Rc3 52. Rxa8 $18) 51. Rb8 {[%emt 0:00:09]} Rxc7 {[%emt 0:00:23]} 52. Rxa8 {[%emt 0:00:06] KRB-KR} Rc2+ {[%emt 0:00:06]} 53. Kh3 {[%emt 0:03:14]} a2 {[%emt 0:00:09]} 54. g4 {[%emt 0:00:06][%cal Bg3g4,Bg4h5,Bh5h6][%mdl 32]} Kd5 {[%emt 0:01:31] [#]} 55. Bg3 {[%emt 0:01:09]} (55. Bh6 $1 $18 {[%cal Rh6g7]}) 55... Ke4 $2 {[%emt 0:05:57][%mdl 8192]} (55... Kc4 $16) 56. Ra4+ {[%emt 0:00:32]} Kf3 $2 {[%emt 0:00:57]} (56... Kd5 {was worth a try.} 57. Bh4 Ke5) 57. Bh4 {[%emt 0:00:11]} h5 {[%emt 0:01:31]} (57... Rd2 $142 58. Bxf6 Kf2) 58. gxh5 {[%emt 0:00:17] Intending h6 and mate.} f5 {[%emt 0:00:06]} 59. h6 {[%emt 0:00:15]} Rc6 {[%emt 0:01:17]} 60. Bg5 {[%emt 0:00:08] Weighted Error Value: White=0.08 (flawless) /Black=0.43} 1-0

[Event "Czech Championship Women 2022"]
[Site "Jaromerice nad Rokytnou"]
[Date "2022.05.29"]
[Round "9.2"]
[White "Zelbova, Lada"]
[Black "Trasakova, Adela"]
[Result "1-0"]
[ECO "D02"]
[WhiteElo "1967"]
[BlackElo "1842"]
[Annotator "TA"]
[PlyCount "101"]
[EventDate "2022.05.24"]
[EventType "tourn"]
[EventCountry "CZE"]
[SourceTitle "playchess.com"]
[Source "ChessBase"]
[SourceQuality "1"]
[TimeControl "40/5400+30:1800+30"]

{[%evp 9,101,0,0,-8,43,25,58,32,38,15,32,28,41,0,0,0,0,-17,0,-21,29,25,69,33,43,54,50,39,43,28,63,55,98,7,13,0,253,254,468,308,485,487,433,189,181,174,174,169,166,146,193,184,179,0,186,0,179,176,175,175,232,212,218,207,227,183,247,236,266,266,262,263,257,225,266,266,905,890,996,991,5381,2236,29977,29978,29972,29974,29978,29979,29986,29978,29974,2514,2489,2459]} 1. d4 {[%emt 0:00:03]} d5 {[%emt 0:00:01]} 2. Nf3 {[%emt 0:00:11]} Nf6 {[%emt 0:00:03]} 3. Bf4 {[%emt 0:00:09]} c5 {[%emt 0:00:42]} 4. e3 {[%emt 0:01:13]} Nc6 {[%emt 0:00:45]} 5. Nbd2 {[%emt 0:00:19]} Qb6 {[%emt 0:02:16][%csl LRb2,LRd4]} 6. dxc5 {[%emt 0:31:35] D02: 1 d4 d5 2 Nf3 sidelines, including 2...Nf6 3 g3 and 2...Nf6 3 Bf4.} Qxc5 {[%emt 0:05:31]} ({Better is} 6... Qxb2 $11 7. c4 e6) 7. c3 {[%emt 0:06:18]} Bf5 {[%emt 0:03:26]} 8. Be2 {[%emt 0:00:12] White is slightly better.} (8. Qb3 $5 {[%cal Rb3b7]} Qb6 9. Bb5 $14) 8... e6 {[%emt 0:01:27]} 9. h3 {[%emt 0:06:59] [#]} h6 $146 {[%emt 0:01:22]} ({Predecessor:} 9... Be7 10. O-O O-O 11. Rc1 Qb6 12. Qb3 Nd7 13. c4 Qxb3 14. Nxb3 dxc4 15. Bxc4 Nb6 {½-½ (37) Castro Castro,J (1493)-Montilla Reyes,J (2150) Medellin 2021}) 10. O-O {[%emt 0:00:14]} Be7 {[%emt 0:00:22]} 11. Rc1 {[%emt 0:01:57]} O-O {[%emt 0:04:13]} 12. b4 {[%emt 0:02:57]} Qb6 {[%emt 0:00:33]} 13. Qb3 {[%emt 0:01:25]} a6 {[%emt 0:06:59]} 14. a3 {[%emt 0:01:01]} Rfd8 {[%emt 0:03:49]} ({Black should play} 14... a5) 15. c4 $11 {[%emt 0:02:35]} Rac8 {[%emt 0:01:03]} 16. Rfd1 {[%emt 0:04:26]} (16. c5 $5 {[%cal Rc5b6]} Qa7 17. Nd4 $14) 16... Ne4 {[%emt 0:05:27]} 17. c5 {[%emt 0:05:32]} Qa7 {[%emt 0:01:41]} 18. Nxe4 {[%emt 0:04:39]} Bxe4 {[%emt 0:01:13]} 19. Ne5 {[%emt 0:01:41]} f6 {[%emt 0:06:41]} 20. Nxc6 {[%emt 0:01:38] White is more active.} Rxc6 {[%emt 0:00:11] [#]} 21. Bd3 {[%emt 0:00:39]} (21. f3 $1 $16 {[%cal Rf3e4]} Bg6 22. e4) 21... Bxd3 {[%emt 0:01:57]} 22. Qxd3 {[%emt 0:00:06]} Kf7 $2 {[%emt 0:06:33][%mdl 8192]} (22... b6 $1 $11) 23. Qh7 $18 {[%emt 0:05:25] aiming for Bxh6.} Kf8 $2 {[%emt 0:01:30]} (23... f5) 24. Bd6 {[%emt 0:02:33]} Rd7 {[%emt 0:03:00]} (24... Bxd6 $142 25. Qh8+ (25. cxd6 Rdxd6 26. a4 Qb6 $17) 25... Kf7 26. Qxd8 Be7) 25. Bxe7+ {[%emt 0:00:31]} Rxe7 {[%emt 0:00:08]} 26. e4 {[%emt 0:00:40]} (26. Rd4 $142) 26... Kf7 {[%emt 0:06:29]} 27. exd5 {[%emt 0:03:16]} exd5 {[%emt 0:00:02]} 28. Qf5 {[%emt 0:00:15]} Qb8 {[%emt 0:03:00]} 29. Qxd5+ {[%emt 0:01:05]} Kg6 {[%emt 0:01:01]} (29... Rce6 $16 {might work better.} 30. g4 (30. Re1 Qc8 $16) 30... Qc8) 30. Qd3+ {[%emt 0:03:04]} Kf7 {[%emt 0:00:17]} 31. Qd5+ {[%emt 0:01:07]} Kg6 $1 {[%emt 0:00:03]} 32. Qd3+ {[%emt 0:02:36]} Kf7 $1 {[%emt 0:00:02]} 33. Qc4+ {[%emt 0:00:08]} Kg6 {[%emt 0:00:36]} 34. Rc3 {[%emt 0:01:36][%cal Bc1c3,Bc3g3,Bg3f3,Bf3e3][%mdl 32]} f5 {[%emt 0:06:31]} (34... Rce6 {is a better defense.} 35. g3 Qc7) 35. Rg3+ {[%emt 0:02:05]} Kh7 {[%emt 0:00:17]} 36. Qd3 {[%emt 0:01:17]} Qf8 {[%emt 0:01:32]} 37. Rf3 {[%emt 0:02:00]} g6 {[%emt 0:01:32]} (37... Rf6 $142 38. Re3 Qf7 39. Rxe7 Qxe7) 38. Re3 {[%emt 0:01:58]} Rf7 {[%emt 0:01:09]} 39. Rde1 {[%emt 0:02:12]} Rcc7 {[%emt 0:05:20]} 40. Re8 {[%emt 0:01:32]} Qg7 {[%emt 0:00:15]} 41. R8e6 {[%emt 0:08:29]} Rfd7 {[%emt 0:03:30]} 42. Rd6 {[%emt 0:00:59]} Rxd6 $2 {[%emt 0:01:49] [#]} (42... Re7 43. Rxe7 Qxe7) 43. cxd6 {[%emt 0:01:28][%mdl 4096] Endgame KQR-KQR} ({Weaker is} 43. Qxd6 h5 44. g3 Rd7 $16) 43... Rd7 {[%emt 0:00:28]} 44. Re6 {[%emt 0:02:40]} Qf7 {[%emt 0:06:29]} 45. Qe3 {[%emt 0:00:48]} (45. Qe2 $142 f4 46. Re7) 45... Kg7 {[%emt 0:07:03]} 46. Qe5+ {[%emt 0:00:31]} Kh7 {[%emt 0:00:06]} 47. h4 {[%emt 0:05:51]} f4 {[%emt 0:06:02]} 48. Re8 {[%emt 0:01:04][%csl Ge8][%cal Re5h8]} g5 {[%emt 0:01:02]} 49. hxg5 {[%emt 0:00:34]} hxg5 {[%emt 0:01:56]} 50. Qh8+ {[%emt 0:00:29]} (50. Rh8+ $142 Kg6 51. Qe4+ Kg7 52. Rh7+ Kf6 53. Rxf7+ Rxf7 54. Qe8 b6 55. d7 Rxd7 56. Qxd7) 50... Kg6 {[%emt 0:00:02]} 51. Rg8+ {[%emt 0:00:19] Weighted Error Value: White=0.31/Black=0.41} 1-0

[Event "Czech Championship Women 2022"]
[Site "Jaromerice nad Rokytnou"]
[Date "2022.05.29"]
[Round "9.3"]
[White "Nemcova, Karin"]
[Black "Koubova, Anna Marie"]
[Result "1-0"]
[ECO "C10"]
[WhiteElo "2181"]
[BlackElo "2115"]
[Annotator "TA"]
[PlyCount "151"]
[EventDate "2022.05.24"]
[EventType "tourn"]
[EventCountry "CZE"]
[SourceTitle "playchess.com"]
[Source "ChessBase"]
[SourceQuality "1"]
[TimeControl "40/5400+30:1800+30"]

{[%evp 11,151,21,29,20,37,20,16,0,0,0,0,-30,28,37,40,23,21,0,0,0,0,-9,-9,-9,-8,-17,0,0,52,52,61,43,48,56,47,57,64,0,61,42,51,52,85,89,84,29,95,75,99,95,125,124,135,51,53,25,20,18,98,119,113,106,146,142,106,109,139,124,124,127,252,252,281,251,258,199,250,241,230,222,422,373,918,922,1084,1062,992,781,1101,747,1269,700,535,322,322,322,5509,5509,5509,5509,5502,5501,5501,5501,5509,5509,5501,5495,5495,5495,5495,5495,5495,5495,5487,5487,5480,0,5480,5480,5480,5480,5460,5391,5365,5356,5258,5265,5287,4258,1778,0,5244,5244,5211,5211,5204,5181,5071,5057,4562,4562]} 1. e4 {[%emt 0:00:02]} e6 {[%emt 0:00:17]} 2. d4 {[%emt 0:00:06]} d5 {[%emt 0:00:05]} 3. Nc3 {[%emt 0:00:08]} Nc6 {[%emt 0:00:26]} 4. Nf3 {[%emt 0:00:08]} Nf6 {[%emt 0:00:20]} 5. e5 {[%emt 0:00:13]} Ne4 {[%emt 0:00:09]} 6. Ne2 {[%emt 0:00:46]} f6 {[%emt 0:00:54]} 7. Ng3 {[%emt 0:00:23] C10: French with 3 Nc3: Unusual Black 3rd moves and 3...dxe4.} fxe5 {[%emt 0:00:33]} 8. dxe5 {[%emt 0:00:08]} Be7 {[%emt 0:00:29]} 9. Nxe4 {[%emt 0:03:28] The position is equal.} dxe4 {[%emt 0:00:27]} 10. Qxd8+ {[%emt 0:01:23]} Bxd8 {[%emt 0:00:43]} 11. Ng5 {[%emt 0:00:36] [#]} Nxe5 $146 {[%emt 0:03:10]} (11... Nd4 $142 12. Kd1 Bxg5 13. Bxg5 O-O) ({Predecessor:} 11... Nd4 12. Kd1 Bxg5 13. Bxg5 O-O 14. Kd2 Bd7 15. Rd1 Nc6 16. Ke3 Nxe5 17. h3 Bc6 {½-½ (73) Fitzsimons,D (2334)-Eggleston,T (2175) Newcastle 2021}) 12. Nxe4 {[%emt 0:00:23]} O-O {[%emt 0:02:18]} 13. Bd2 {[%emt 0:06:52]} b6 {[%emt 0:04:50]} 14. Bc3 {[%emt 0:01:48]} Bb7 {[%emt 0:00:47]} 15. Ng3 {[%emt 0:04:47]} Ng4 {[%emt 0:01:38]} 16. Bc4 {[%emt 0:13:54]} Bd5 {[%emt 0:07:15]} (16... Nxf2 $2 17. Bxe6+ Kh8 18. O-O $18) 17. Bxd5 {[%emt 0:06:45]} exd5 {[%emt 0:00:08]} 18. O-O {[%emt 0:00:17]} Bg5 {[%emt 0:09:05]} 19. h3 {[%emt 0:02:53]} Nf6 {[%emt 0:02:40]} (19... Nh6 $11) 20. f4 $1 $14 {[%emt 0:01:10]} Bh6 {[%emt 0:05:38]} 21. Nf5 {[%emt 0:03:07][%cal Bg3f5,Bf5e7,Be7d5][%mdl 32]} Ne4 {[%emt 0:02:44]} 22. Ne7+ {[%emt 0:03:15]} Kh8 {[%emt 0:03:25]} 23. Be5 {[%emt 0:02:10]} Ng3 {[%emt 0:04:50]} 24. Rf2 {[%emt 0:05:17]} (24. Nxd5 Nxf1 25. Rxf1 Rf7 $11) (24. Rfe1 $14) 24... Bxf4 {[%emt 0:10:24]} 25. Bxf4 {[%emt 0:00:21]} Rxf4 {[%emt 0:00:10]} 26. Nxd5 {[%emt 0:00:13]} (26. Ng6+ $2 hxg6 27. Rxf4 Ne2+ 28. Kh2 Nxf4 $19) 26... Rc4 {[%emt 0:03:44]} 27. Re1 {[%emt 0:01:14]} c6 {[%emt 0:03:46]} 28. Nc3 {[%emt 0:00:23]} (28. Ne7 $16) 28... Nh5 {[%emt 0:03:29]} (28... h5 $1 $11 {keeps the balance.}) 29. Rf7 $16 {[%emt 0:01:15][%cal Of7a7]} Kg8 {[%emt 0:02:15]} 30. Rc7 {[%emt 0:05:53] White is more active.} Rc5 {[%emt 0:02:32]} 31. Ree7 $36 {[%emt 0:02:30][%mdl 2048] White is on the roll.} Rg5 {[%emt 0:00:16]} 32. Ne4 {[%emt 0:03:58]} (32. Rxc6 $6 Nf4 $11) (32. Ne2 $16) 32... Rg6 $1 $14 {[%emt 0:00:35]} 33. g4 {[%emt 0:02:46]} Nf4 {[%emt 0:01:59]} 34. Kh2 {[%emt 0:00:32]} Nd5 {[%emt 0:03:04]} (34... Rf8 $11) 35. Rxa7 $16 {[%emt 0:00:21]} Rxa7 {[%emt 0:00:27]} 36. Rxa7 {[%emt 0:00:14][%mdl 4096] Endgame KRN-KRN} h6 {[%emt 0:00:16]} 37. Kg3 {[%emt 0:05:06]} Re6 {[%emt 0:00:46]} 38. Kf3 {[%emt 0:00:59]} Re8 {[%emt 0:01:33]} 39. c4 {[%emt 0:02:22]} Rf8+ {[%emt 0:00:26]} 40. Kg3 {[%emt 0:00:40]} Nf6 {[%emt 0:02:39]} (40... Ne3 $16) 41. Nxf6+ $18 {[%emt 0:31:57]} Rxf6 {[%emt 0:30:08] KR-KR} 42. b4 {[%emt 0:00:23] And now Ra6 would win.} ({Resist} 42. Rb7 $6 c5 43. h4 Kf8 $18) 42... Rd6 {[%emt 0:01:15]} 43. Ra6 {[%emt 0:02:17]} Rd4 {[%emt 0:00:42]} 44. Rxb6 {[%emt 0:00:35]} Rxc4 {[%emt 0:00:10]} 45. Kf3 {[%emt 0:04:02]} Rc3+ $2 {[%emt 0:00:53]} (45... Kf8 {was necessary.} 46. Ke3 Ke7 47. Rb7+ Kd6 48. Rxg7 Rc3+ 49. Kd4 Rxh3) 46. Ke4 {[%emt 0:00:56]} Ra3 $2 {[%emt 0:00:10]} (46... Rxh3 47. Rxc6 Ra3) 47. Rxc6 {[%emt 0:00:32]} Rxa2 {[%emt 0:00:08]} 48. Kf5 {[%emt 0:00:28]} Kh7 {[%emt 0:00:35]} 49. h4 {[%emt 0:03:50]} g6+ {[%emt 0:01:18]} 50. Kf4 {[%emt 0:03:06] Hoping for b5.} Rh2 {[%emt 0:01:46]} 51. Rc7+ {[%emt 0:01:17]} Kg8 {[%emt 0:00:45]} 52. Kg3 {[%emt 0:00:29]} Rb2 {[%emt 0:00:13]} 53. Rb7 {[%emt 0:00:11]} g5 $2 {[%emt 0:03:13]} (53... Kf8 54. Kf4 Ke8) 54. hxg5 {[%emt 0:01:08]} hxg5 {[%emt 0:00:06] [#]} 55. Kf3 $1 {[%emt 0:01:31]} Kf8 {[%emt 0:00:06]} 56. Rb5 {[%emt 0:00:27]} Kf7 {[%emt 0:04:11]} 57. Ke4 {[%emt 0:00:21]} Ke6 {[%emt 0:00:33]} 58. Rb6+ {[%emt 0:00:00]} Kd7 {[%emt 0:00:00]} 59. b5 {[%emt 0:00:00]} Rf2 {[%emt 0:00:00] [#]} 60. Ke5 $1 {[%emt 0:00:00]} Rf4 {[%emt 0:00:00]} 61. Rd6+ {[%emt 0:00:00]} Kc7 {[%emt 0:00:00]} 62. Rd4 {[%emt 0:00:00]} Rf1 {[%emt 0:00:00]} 63. Ke6 {[%emt 0:00:00]} Rf4 {[%emt 0:00:00]} 64. Ke5 {[%emt 0:00:00]} ({Wrong is} 64. Rxf4 $2 gxf4 65. g5 f3 66. g6 f2 67. Ke7 f1=Q 68. g7 Qe2+ 69. Kf7 Qh5+ 70. Kf6 Qg4 71. b6+ Kxb6 72. Kf7 Qf5+ 73. Ke8 Qg6+ 74. Kf8 Qf6+ 75. Kg8 Kc6 76. Kh7 Qf5+ 77. Kh6 Qg4 78. g8=B Qxg8 79. Kh5 Kd5 80. Kh6 Ke4 81. Kh5 Kf5 82. Kh6 Qh8#) 64... Rf1 $1 {[%emt 0:00:00]} 65. Rc4+ {[%emt 0:00:00]} Kb7 {[%emt 0:00:00]} 66. Kd5 {[%emt 0:00:00]} Rd1+ {[%emt 0:00:00]} 67. Kc5 {[%emt 0:00:00]} Rg1 {[%emt 0:00:00]} 68. Rd4 {[%emt 0:00:00]} Rg2 {[%emt 0:00:00]} 69. Re4 {[%emt 0:00:00]} Rg1 {[%emt 0:00:00]} 70. Re7+ {[%emt 0:00:00]} Kc8 {[%emt 0:00:00]} 71. Re4 {[%emt 0:02:05]} (71. Kc6 $142 Rc1+ 72. Kd5) 71... Kb7 $1 {[%emt 0:00:00]} 72. Kd6 {[%emt 0:00:22] White is clearly winning.} ({Less strong is} 72. Re7+ Kc8 $16) 72... Kb6 {[%emt 0:00:00]} 73. Ke6 {[%emt 0:00:11]} Kxb5 {[%emt 0:00:00]} 74. Kf5 {[%emt 0:00:07]} Kc5 {[%emt 0:00:00]} 75. Kxg5 {[%emt 0:00:08]} Kd5 {[%emt 0:00:00]} 76. Re8 {[%emt 0:00:14] Weighted Error Value: White=0.30/Black=0.26 (precise)} 1-0